Cogmind - Beta 14 --- EXPLORER MODE // 2024.11.06 @ 11:50:18 Player: lzrtly Result: Destroyed by AG-25723 with Assembled Focal Cannon Performance ------------- Evolutions (1) 500 Regions Visited (6) 1200 Robots Destroyed (46) 230 Value Destroyed (1335) 1335 Prototype IDs (14) 280 Alien Tech Used (0) 0 Bonus (-162) -162 TOTAL SCORE: 3383 Bonus ------- Met Imprinter 300 Friendly Fire -462 Cogmind --------- Core Integrity 0/400 Matter 37/300 Energy 700/700 System Corruption 4% Temperature Cool (6) Movement Treading (170) Location -7/Deep Caves Parts ------- > --- POWER (1) -------- Zionite Light DM Reactor > --- PROPULSION (2) --- Armored Treads Armored Treads > --- UTILITY (3) ------ Experimental Heat Sink Zionite Biocell Zionite Weapon Casing > --- WEAPON (4) ------- Storm Laser > --- INVENTORY (5) ---- Makeshift Power Source Heavy Battle Rifle Rocket Launcher Peak State ------------ > --- POWER ------------ Zionite Light DM Reactor > --- PROPULSION ------- Armored Treads Armored Treads > --- UTILITY ---------- Experimental Heat Sink Zionite Biocell Zionite Weapon Casing > --- WEAPON ----------- Storm Laser > --- INVENTORY -------- Makeshift Power Source Heavy Battle Rifle Rocket Launcher [Rating: 58] Favorites ----------- Power Ion Engine Engine Ion Engine Power Core Light Nuclear Core Reactor Zionite Light DM Reactor Propulsion Light Treads Treads Light Treads Hover Unit Zionite Glidesys I Utility Large Storage Unit Device Terrain Scanner Storage Large Storage Unit Protection Zionite Weapon Casing Weapon Improved Assault Rifle Energy Gun Storm Laser Ballistic Gun Improved Assault Rifle Ballistic Cannon Bore Cannon Slashing Weapon Makeshift Axe Build | -11 -10 -10 -9 -9 -7 -7 ------- Run | Yrd Mat Min Mat Min Zio Dee Slots Evolved 3 | . 1 . 2 . . . Power . | . . . . . . . Propulsion . | . . . . . . . Utility 1 | . 1 . . . . . Weapon 2 | . . . 2 . . . Parts Attached 55 | 7 5 3 2 4 17 17 Power 5 | 1 . . . . 3 1 Engine 3 | 1 . . . . 2 . Core 1 | . . . . . 1 . Reactor 1 | . . . . . . 1 Propulsion 9 | 2 1 . . . 3 3 Treads 8 | 2 1 . . . 3 2 Leg . | . . . . . . . Wheel . | . . . . . . . Hover 1 | . . . . . . 1 Flight . | . . . . . . . Utility 27 | 2 1 3 . 2 10 9 Device 19 | 2 . 3 . 2 7 5 Storage 3 | . 1 . . . . 2 Processor . | . . . . . . . Hackware . | . . . . . . . Protection 5 | . . . . . 3 2 Artifact . | . . . . . . . Weapon 14 | 2 3 . 2 2 1 4 Energy Gun 6 | . . . 2 1 1 2 Energy Cannon . | . . . . . . . Ballistic Gun 6 | 2 3 . . 1 . . Ballistic Cannon 1 | . . . . . . 1 Launcher . | . . . . . . . Special Weapon . | . . . . . . . Impact Weapon . | . . . . . . . Slashing Weapon 1 | . . . . . . 1 Piercing Weapon . | . . . . . . . Special Melee Weapon . | . . . . . . . Unidentified Prototypes 14 | . 1 1 . 1 5 6 Parts Lost 5 | . . . . 1 1 3 Power . | . . . . . . . Propulsion 1 | . . . . . 1 . Utility 2 | . . . . . . 2 Weapon 2 | . . . . 1 . 1 Highest Loss Streak 2 | . . . . 1 1 2 To Critical Strikes 1 | . . . . . 1 . Average Slot Usage (%) 80 | . 98 99 90 99 73 63 Engine 6 | . 12 12 10 10 4 2 Core 2 | . . . . . 5 . Reactor 1 | . . . . . . 7 Treads 20 | . 24 25 20 20 19 19 Device 16 | . 25 24 20 20 16 10 Storage 9 | . 11 12 10 10 10 7 Protection 1 | . . . . . 1 4 Energy Gun 9 | . . . 10 12 9 10 Ballistic Gun 11 | . 24 25 20 26 5 . Peak Build Rating 58 | 7 13 25 18 27 48 58 Average Rating 31 | 5 8 13 15 19 36 47 On Entrance 17 | . 7 13 14 18 20 47 Naked Turns . | . . . . . . . Heaviest Build 61 | 11 33 33 37 39 55 61 Greatest Support 43 | 40 40 40 40 40 43 40 Greatest Overweight (x) 1 | . 1 . . . 1 1 Average Overweight (x) . | . . . . . . . Largest Inventory Capacity 15 | 5 15 15 15 15 15 15 Average Capacity 13 | 5 14 15 15 15 15 10 Most Carried 15 | 2 7 10 15 15 15 15 Average Carried 12 | . 5 9 11 14 14 9 Final Capacity 15 | 5 15 15 15 15 15 5 Final Carried 15 | 2 7 10 15 15 15 3 Class Distribution -------------------- 50% | Hacker-Skirmisher 15% | Hacker-Mutant 8% | Scavenger-Tank 8% | Scavenger-Gunner 6% | Hacker-Tank 5% | Scavenger-Mutant 5% | Hacker-Gunner Dominant Class ---------------- Hacker-Mutant | -10/Materials Hacker-Mutant | -10/Mines Hacker-Skirmisher | -9/Materials Hacker-Skirmisher | -9/Mines Hacker-Skirmisher | -7/Zion Scavenger-Gunner | -7/Deep Caves Resources | -11 -10 -10 -9 -9 -7 -7 ----------- Run | Yrd Mat Min Mat Min Zio Dee Matter Collected 1116 | 98 220 144 199 146 170 139 Remotely . | . . . . . . . Salvage Created 2033 | . 176 . 280 224 1121 232 Parts 123 | . 10 . 15 4 85 9 Haulers Intercepted 1 | . . . 1 . . . Recyclers Shooed . | . . . . . . . Parts Field Recycled . | . . . . . . . Retrieved Matter . | . . . . . . . Parts Self-Destructed . | . . . . . . . Prevented . | . . . . . . . Kills | -11 -10 -10 -9 -9 -7 -7 ------- Run | Yrd Mat Min Mat Min Zio Dee Combat Hostiles Destroyed 35 | . 4 . 6 11 8 6 Guns 35 | . 4 . 6 11 8 6 Classes Destroyed 8 | . 1 . 1 3 2 1 Hauler 1 | . . . 1 . . . Grunt 12 | . 4 . 6 2 . . Brawler 1 | . . . . 1 . . Duelist 1 | . . . . 1 . . Zionite 31 | . . . . . 31 . Z-Light 3 | . . . . . . 3 Assembled 10 | . . . . 7 . 3 Thug 2 | . . . . . 2 . Butcher 1 | . . . . . 1 . Mutant 5 | . . . . . 5 . Best Kill Streak 8 | . 4 . 3 6 8 3 Combat Bots Only 6 | . 4 . 3 6 3 3 Max Kills in Single Turn 3 | . 1 . 2 2 3 2 Gunslinging 1 | . . . 1 1 . . Exploded . | . . . . . . . Melee . | . . . . . . . Uniques/NPCs Destroyed 1 | . . . . . 1 . Imprinter (-7/Zion) Combat | -11 -10 -10 -9 -9 -7 -7 -------- Run | Yrd Mat Min Mat Min Zio Dee Hostile Shots Fired 210 | . 25 . 20 15 120 30 Missed 69 | . 10 . 7 3 43 6 Damage Taken 2015 | . 140 . 108 161 878 728 Core 434 | . 20 . 7 26 122 259 Absorbed by Shields . | . . . . . . . Redirected to Shielding 121 | . . . . . 86 35 Ignored by Resistances 1043 | . 85 . 66 92 517 283 Core Remaining (%) 96 | 100 . 92 . . . . Volleys Fired 97 | . 12 . 13 15 43 14 Largest 4 | . 2 . 4 4 1 1 Hottest 250 | . 40 . 151 151 250 250 Shots Fired 178 | . 24 . 44 54 42 14 Gun 171 | . 24 . 44 54 42 7 Cannon 7 | . . . . . . 7 Launcher . | . . . . . . . Special . | . . . . . . . Kinetic 91 | . 24 . 26 34 . 7 Thermal 87 | . . . 18 20 42 7 Explosive . | . . . . . . . Electromagnetic . | . . . . . . . Robot Hit Streak 47 | . 15 . 31 30 47 11 Robot Miss Streak 6 | . 1 . 2 4 5 6 Penetration Max . | . . . . . . . Secondary Targets 4 | . 1 . 1 2 . . Max Gunslinging Chain 1 | . 1 . 1 1 . . Shots Hit Robots 148 | . 21 . 37 41 42 7 Core Hits 139 | . 9 . 24 30 61 15 Critical Kills . | . . . . . . . Critical Parts Destroyed . | . . . . . . . Critical Strikes . | . . . . . . . Melee Attacks 1 | . . . . . . 1 Impact . | . . . . . . . Slashing 1 | . . . . . . 1 Piercing . | . . . . . . . Sneak Attacks . | . . . . . . . Combat Hostiles . | . . . . . . . Follow-up Attacks . | . . . . . . . Damage Inflicted 4671 | . 274 . 566 645 2588 598 Guns 4671 | . 274 . 566 645 2588 598 Cannons . | . . . . . . . Explosions . | . . . . . . . Melee . | . . . . . . . Ramming . | . . . . . . . Kinetic 944 | . 274 . 304 366 . . Thermal 3727 | . . . 262 279 2588 598 Explosive . | . . . . . . . Electromagnetic . | . . . . . . . Impact . | . . . . . . . Slashing . | . . . . . . . Piercing . | . . . . . . . Highest Corruption 4 | . . . . . 3 4 Average Corruption 3 | . . . . . 3 3 Corruption Purged . | . . . . . . . Corruption Blocked . | . . . . . . . Effects 38 | . . . . . 8 30 Message Errors 12 | . . . . . 3 9 Matter Fused 12 | . . . . . 1 11 Heat Flow Errors 3 | . . . . . 1 2 Energy Discharges 3 | . . . . . . 3 Data Loss (minor) 2 | . . . . . 1 1 Data Loss (major) 4 | . . . . . 1 3 Alerts 1 | . . . . . . 1 Weapon Failures 1 | . . . . . 1 . Overload Shots . | . . . . . . . Overflow Damage . | . . . . . . . Projectiles . | . . . . . . . Explosions . | . . . . . . . Melee . | . . . . . . . Knockbacks . | . . . . . . . Impact . | . . . . . . . Kinetic . | . . . . . . . Secondary . | . . . . . . . Self-Inflicted Damage . | . . . . . . . Shots . | . . . . . . . Rammed . | . . . . . . . Targets Rammed . | . . . . . . . Kicked . | . . . . . . . Crushed . | . . . . . . . Highest Temperature 505 | . 30 . 352 229 434 505 Average Temperature 132 | . 18 . 121 90 150 128 Received Heat Transfer 757 | . 162 . 111 18 287 179 Effects 13 | . . . 1 . 9 3 Shutdowns 1 | . . . . . 1 . Energy Bleed 3 | . . . . . 3 . Interference 7 | . . . . . 4 3 Matter Decay 1 | . . . 1 . . . Damage (minor) 1 | . . . . . 1 . Siege Activations . | . . . . . . . Robots Corrupted . | . . . . . . . Combat Hostiles . | . . . . . . . Parts Fried . | . . . . . . . Impact Corruptions . | . . . . . . . Robots Melted . | . . . . . . . Combat Hostiles . | . . . . . . . Parts Melted 15 | . . . . . 11 4 Heat Transferred 5359 | . . . 430 400 3654 875 Parts Sabotaged . | . . . . . . . Parts Stolen . | . . . . . . . Parts Stripped . | . . . . . . . Power Chain Reactions . | . . . . . . . Alert | -11 -10 -10 -9 -9 -7 -7 ------- Run | Yrd Mat Min Mat Min Zio Dee Peak Influence 173 | . 118 32 173 97 . . Initial 47 | . . 32 . 47 . . Average 33 | . 56 28 43 29 . . Maximum Alert Level . | . . . . . . . Low Security (%) 100 | 100 100 100 100 100 . . Level 1 . | . . . . . . . Level 2 . | . . . . . . . Level 3 . | . . . . . . . Level 4 . | . . . . . . . Level 5 . | . . . . . . . High Security . | . . . . . . . Max Security . | . . . . . . . Squads Dispatched 1 | . . . 1 . . . Investigation . | . . . . . . . Extermination . | . . . . . . . Reinforcement 1 | . . . 1 . . . Assault . | . . . . . . . Garrison . | . . . . . . . Intercept . | . . . . . . . Searches Triggered . | . . . . . . . Construction Impeded . | . . . . . . . Haulers Reinforced . | . . . . . . . Active Scanning Responses . | . . . . . . . Cargo Convoy Interrupts . | . . . . . . . Stealth | -11 -10 -10 -9 -9 -7 -7 --------- Run | Yrd Mat Min Mat Min Zio Dee Distress Signals 2 | . 2 . . . . . Communications Jammed . | . . . . . . . Distress Signals . | . . . . . . . Times Spotted 74 | . 5 . 8 14 40 7 Peak Tracking Total 7 | . 4 . 4 5 7 3 Tactical Retreats 4 | . 1 . . 3 . . Traps | -11 -10 -10 -9 -9 -7 -7 ------- Run | Yrd Mat Min Mat Min Zio Dee Traps Triggered 1 | . 1 . . . . . Indirectly . | . . . . . . . Trap Hack Attempts . | . . . . . . . Triggered . | . . . . . . . Disarmed . | . . . . . . . Reprogrammed . | . . . . . . . Reused . | . . . . . . . Traps Extracted . | . . . . . . . Installed 2 | . . . . . . 2 Triggered . | . . . . . . . Fabricated Traps 2 | . . . . . . 2 Most Traps Carried 2 | . . . . . . 2 Machines | -11 -10 -10 -9 -9 -7 -7 ---------- Run | Yrd Mat Min Mat Min Zio Dee Machines Disabled . | . . . . . . . Max in Single Turn . | . . . . . . . Machines Repaired . | . . . . . . . Machines Dismantled . | . . . . . . . Machines Sabotaged . | . . . . . . . Overloaded Fab Kills . | . . . . . . . Hacking | -11 -10 -10 -9 -9 -7 -7 --------- Run | Yrd Mat Min Mat Min Zio Dee Machines Accessed 5 | . 3 1 1 . . . Terminals 4 | . 3 . 1 . . . Fabricators . | . . . . . . . Repair Stations . | . . . . . . . Recycling Units . | . . . . . . . Scanalyzers . | . . . . . . . Garrison Access . | . . . . . . . Total Hacks 10 | . 6 1 3 . . . Successful 6 | . 3 1 2 . . . Failed 4 | . 3 . 1 . . . Catastrophic . | . . . . . . . Database Lockouts . | . . . . . . . Manual 13 | . 6 . 3 . 4 . Terminals 9 | . 6 . 3 . . . Fabricators . | . . . . . . . Repair Stations . | . . . . . . . Recycling Units . | . . . . . . . Scanalyzers . | . . . . . . . Garrison Access . | . . . . . . . Terminal Hacks 4 | . 2 1 1 . . . Open Door 1 | . . 1 . . . . Branch Access Points 2 | . 1 . 1 . . . Zone Layout 1 | . 1 . . . . . Fabricator Hacks . | . . . . . . . Repair Station Hacks . | . . . . . . . Recycling Unit Hacks . | . . . . . . . Scanalyzer . | . . . . . . . Garrison Access Hacks . | . . . . . . . Unauthorized Hacks 2 | . 1 . 1 . . . Terminals 2 | . 1 . 1 . . . Botnet 2 | . 1 . 1 . . . Fabricators . | . . . . . . . Repair Stations . | . . . . . . . Recycling Units . | . . . . . . . Scanalyzers . | . . . . . . . Garrison Access . | . . . . . . . Data Cores Recovered . | . . . . . . . Used . | . . . . . . . Hacking Detections 3 | . 2 . 1 . . . Full Trace Events . | . . . . . . . Feedback Events . | . . . . . . . Feedback Blocked . | . . . . . . . Robot Schematics Acquired . | . . . . . . . Robots Built . | . . . . . . . Authchips . | . . . . . . . Time . | . . . . . . . Total Robot Build Rating . | . . . . . . . Part Schematics Acquired . | . . . . . . . Parts Built . | . . . . . . . Authchips . | . . . . . . . Time . | . . . . . . . Total Part Build Rating . | . . . . . . . Parts Repaired . | . . . . . . . Time . | . . . . . . . Parts Recycled . | . . . . . . . Recycled Matter . | . . . . . . . Retrieved Matter . | . . . . . . . Retrieved Components . | . . . . . . . Parts Scanalyzed . | . . . . . . . Part Schematics Acquired . | . . . . . . . Parts Damaged . | . . . . . . . Bothacking | -11 -10 -10 -9 -9 -7 -7 ------------ Run | Yrd Mat Min Mat Min Zio Dee Used RIF Installer . | . . . . . . . Robots Hacked . | . . . . . . . Non-combat . | . . . . . . . Combat . | . . . . . . . Robot Hacks Applied . | . . . . . . . Relay Couplers Released . | . . . . . . . Fabnet Peak Effective % . | . . . . . . . Robots Rewired . | . . . . . . . Allies Hacked . | . . . . . . . Hacks Repelled . | . . . . . . . Allies | -11 -10 -10 -9 -9 -7 -7 -------- Run | Yrd Mat Min Mat Min Zio Dee Total Allies 3 | . . . . 3 . . Largest Group 3 | . . . . 3 3 . Highest-Rated Group 40 | . . . . 40 40 . Highest-Rated Ally 16 | . . . . 16 16 . Total Orders . | . . . . . . . Ally Attacks 4 | . . . . . 4 . Total Damage 53 | . . . . . 53 . Kills 1 | . . . . . 1 . Allies Corrupted . | . . . . . . . Allies Melted . | . . . . . . . Intel | -11 -10 -10 -9 -9 -7 -7 ------- Run | Yrd Mat Min Mat Min Zio Dee Robot Analysis Total . | . . . . . . . Derelict Logs Recovered 4 | . . 1 . 2 1 . Drone Launches . | . . . . . . . Drone Recoveries . | . . . . . . . Exploration | -11 -10 -10 -9 -9 -7 -7 ------------- Run | Yrd Mat Min Mat Min Zio Dee Turns Passed 6301 | 83 344 453 259 1298 2339 1525 Spaces Moved 2959 | 47 147 275 127 710 964 689 Core 3 | 3 . . . . . . Treads 2956 | 44 147 275 127 710 964 689 Legs . | . . . . . . . Wheels . | . . . . . . . Hover . | . . . . . . . Flight . | . . . . . . . Fastest Speed 50 | 50 160 160 160 160 160 170 Average Speed 188 | 152 161 160 160 160 218 199 Slowest Speed 250 | 160 240 160 160 160 250 250 Overloaded Moves . | . . . . . . . Propulsion Burnouts . | . . . . . . . Robots Hopped . | . . . . . . . Cave-ins Triggered 1 | . . . . . . 1 Exploration Rate (%) 47 | 4 32 48 20 92 83 52 Regions Visited 6 Branch Regions 4 Pre-discovered Areas 2 | . . . . . 2 . Known Exits Taken 5 | 1 1 1 1 . 1 . Unknown Exits Taken 1 | . . . . 1 . . Scrap Searched 2 | . . 1 . . 1 . Spaces Dug 7 | . . . . . . 7 Terrain Destroyed 10 | . . . . . . 10 Melee 1 | . . . . . . 1 Projectile 9 | . . . . . . 9 AOE . | . . . . . . . Terrain Rammed . | . . . . . . . Walls Destroyed . | . . . . . . . Machines Disabled . | . . . . . . . Actions | -11 -10 -10 -9 -9 -7 -7 --------- Run | Yrd Mat Min Mat Min Zio Dee Total 3453 | 55 228 288 151 836 1077 818 Wait 257 | . 58 7 5 103 15 69 Move 2953 | 46 146 274 126 709 963 689 Hop . | . . . . . . . Pick Up 30 | 2 5 1 5 3 12 2 Fast Attach 40 | 7 5 3 2 1 10 12 Attach 8 | . . . . 1 4 3 Detach 3 | . . 1 . . 2 . Swap 7 | . . . . 2 3 2 Drop 53 | . 2 2 . 2 23 24 Fire 97 | . 12 . 13 15 43 14 Melee 1 | . . . . . . 1 Ram . | . . . . . . . Kick . | . . . . . . . Crush . | . . . . . . . Escape Stasis . | . . . . . . . Rewire 2 | . . . . . 2 . Trap 2 | . . . . . . 2 Miscellaneous . | . . . . . . . Route ------- -11/Scrapyard -10/Materials -10/Mines -9/Materials -9/Mines (discovered 3 exits: *Mat x2 / *Zio) -7/Zion -7/Deep Caves History --------- Turn | Location | Event 17 | -11/Scrapyard | Identified exit to Materials 17 | -11/Scrapyard | Discovered exit to Materials (range 16) 84 | -11/Scrapyard | Entered Materials 84 | -10/Materials | Evolved 1 slot: Utility x1 328 | -10/Materials | Build established: Hacker-Mutant 331 | -10/Materials | Identified exit to Mines 428 | -10/Materials | Entered Mines 433 | -10/Mines | Identified exit to Materials 433 | -10/Mines | Discovered exit to Materials (range 10) 437 | -10/Mines | Received a Rocket Launcher from a helpful Derelict 502 | -10/Mines | Found the Drone Emporium 516 | -10/Mines | Learned Materials garrison access intel 522 | -10/Mines | Found Prototype Device 522 | -10/Mines | Identified Decoy Drone Bay 881 | -10/Mines | Entered Materials 881 | -9/Materials | Evolved 2 slots: Weapon x2 907 | -9/Materials | Identified exit to Mines 1140 | -9/Materials | Entered Mines 1180 | -9/Mines | Assembled infested the area 1185 | -9/Mines | Assisted by a Guerilla fighting off Assembled 1263 | -9/Mines | Learned Materials stockpile data 1293 | -9/Mines | Build established: Hacker-Skirmisher 1587 | -9/Mines | Learned Materials interactive machine intel 1679 | -9/Mines | Identified exit to Materials 1679 | -9/Mines | Discovered exit to Materials (range 5) 1854 | -9/Mines | Found a damaged Exp. Sensor Array with a note attached 1860 | -9/Mines | Found Prototype Device 1868 | -9/Mines | Identified Exp. Sensor Array 1977 | -9/Mines | A weapon hastily lodged in a ceiling crevice suddenly fell to the ground 2253 | -9/Mines | Discovered exit to Materials (range 12) 2285 | -9/Mines | Assisted by bots powering up and referring to "LRC-V3" 2427 | -9/Mines | A Derelict revealed a hidden shortcut to a safe place 2438 | -9/Mines | Entered Zion 2438 | -7/Zion | Accompanied by 3 allies 2489 | -7/Zion | Found Prototype Device 2514 | -7/Zion | Identified Bomb Factory No. 2 2566 | -7/Zion | Learned location of Warlord (-5) 2892 | -7/Zion | Found Prototype Energy Gun 2892 | -7/Zion | Identified Storm Laser 3025 | -7/Zion | Given the Hacking Drone Bay 3030 | -7/Zion | Found Prototype Device 3030 | -7/Zion | Identified Hacking Drone Bay 3376 | -7/Zion | Found Prototype Device 3376 | -7/Zion | Identified Mobile Refinery Mk. CCLXVII 3560 | -7/Zion | Learned location of Storage (-7) 3632 | -7/Zion | Acquired unknown access codes intercepted by a Zionite 4047 | -7/Zion | Met Imprinter 4105 | -7/Zion | Attacked by Zionites 4106 | -7/Zion | Allies destroyed Imprinter 4112 | -7/Zion | Extracted access codes from Imprinter's data core 4140 | -7/Zion | Lost 3 allies 4727 | -7/Zion | Opened final containment barrier to the Deep Caves 4770 | -7/Zion | Identified exit to Deep Caves 4770 | -7/Zion | Discovered exit to Deep Caves (range 3) 4770 | -7/Zion | Saw the warning signs outside the Deep Caves entrance 4777 | -7/Zion | Entered Deep Caves 4944 | -7/Deep Caves | Build established: Scavenger-Gunner 5163 | -7/Deep Caves | Z-Facility disabled 5203 | -7/Deep Caves | Found Prototype Protection 5203 | -7/Deep Caves | Identified Zio. Weapon Casing 5293 | -7/Deep Caves | Crushed by falling debris 5293 | -7/Deep Caves | Core integrity fell below 50% 5515 | -7/Deep Caves | Build established: Scavenger-Mutant 5541 | -7/Deep Caves | Found Zio. Weapon Casing 5906 | -7/Deep Caves | Build established: Hacker-Tank 6254 | -7/Deep Caves | Build established: Scavenger-Tank 6294 | -7/Deep Caves | Spotted AG-25723 6297 | -7/Deep Caves | Core integrity fell below 20% 6302 | -7/Deep Caves | Destroyed by AG-25723 with Assembled Focal Cannon Last Messages --------------- 05828_ Dropped Dirty Bomb Trap. 05832_ Installed Dirty Bomb Trap. 05862_ DNKWM/XXRKXSDEB#J5:SC,S8 05952_ Acquired 10 matter. 05955_ Acquired Prototype Storage. 05955_ Identified Zio. Biocell. 05966_ Acquired Imp. Reaction Control System. 05971_ Dropped Imp. Reaction Control System. 06024_ Acquired Exp. Heat Sink. 06033_ System corrupted: Energy discharge (-231). 06108_ System corrupted: Substantial component data lost. 06132_ H JOLDNR||4S&>ZM10C1QK|YWDBTY/, 06190_ System corrupted: Matter fused (-9). 06230_ System corrupted: Matter fused (-8). 06263_ System corrupted: Energy discharge (-175). 06295_ AG-25723: "DSI9AT1D G8OHIBQ29FWG 26R186 QD12WHW8W33 TDK1 81FTS" Map ----- +----------------------------------------------------+ | ?????????????????????????????????????????????????? | | ?????????????????????????????????????????????????? | | ?????????????????????????????????????????????????? | | ?????????????????????????????????????????????????? | | ????????????????????????? ????????????????? ????? | | ??????????????????????? ???????????????## ????? | | ???????????????????? ???????????? ## ???? | | ?????????????????? ???????????? ???? | | ???????????????? ???????????# #???? | | ???????????????? ???????????# ##??? | | ??????????????? = ?????????### #### | | ??????????????? = #??###??## # | | ??????????????! [ #?## #?# | | ???????????? [ g #?# ## | | ?????????? ! #?# ## # | | ?????????? * *! ### ## # | | ????????? #?# #?# | | ????????? * #??# ##?# | | ???????? l #???# ##??# | | ???????? * ###### ##?# | | ???????? ^^ ### ## | | ???????""" * ! #### | | ???????" * * g * # #??# # | | ????????" s ############ #### # | | ???????" g #??????????## ## | | ????????" @ ##???????????# | | ???????" # # #????????????# | | ???????" #### ## ## ##????????????## | | ???????""" ???????# ?# ####??????????????## #### | | ??????????????????#??# #??????????????????#####??? | | ?????????????????????###?????????????????????????? | | | | | | | | | | | | | | | | | | | | | | | | | | | | | | | | | | | | | | | +----------------------------------------------------+ Best States ------------- Heat Dissipation 54 Energy Generation 27 Energy Capacity 700 Matter Stores 300 Matter Capacity 300 Sight Range 16 Robot Scan Range 20 Terrain Scan Range 14 Terrain Scan Density 10 Resistance: KI 35 Resistance: TH 35 Resistance: EX 35 Resistance: EM 35 Resistance: I 35 Resistance: S 35 Resistance: P 35 Utility Shielding 33 Weapon Shielding 100 Weapon Cycling 15 Evasion (%) 40 Recoil Reduction 2 Offensive Hacking 20 Item Schematics ----------------- None Robot Schematics ------------------ None Fabricated ------------ Nothing Alien Tech Used ----------------- None Achievements -------------- None Challenges ------------ None Game ------ Seed CoreFieldBoomstick Manual? 0 Play Time 00:34:13 Cumulative 50.0 hours Start 2024.11.05 @ 15:14:00 End 2024.11.06 @ 11:50:18 Sessions 5 Manual Loads 0 Difficulty Explorer Special Mode None Game No. 53 Rogue 51 Adventurer 1 Explorer 1 Win Type - Total 2 Types 1/0/1/0/0/0/0/0/0 Lore% 36 Gallery% 54 Achievement% 46 Wizard Run 0 Options --------- Layout 1 ASCII 0 Keyboard 0 Movement Numpad Keybinds 0 Fullscreen 2 Font 20/SmallcapsGlow Map View 54x42 Zoom Use 0% Tactical HUD 1 Map Filters NONE Filters NONE Steam 1 RUN: ada0663a-8b31-4cb2-ab01-4262d5d31e23